fUSD/lending_fUSD_20260126
["ID","MTS","AMOUNT","RATE_DAILY","PERIOD"]
[403666199,1769457041875,-828.7855079,0.00016438,2]
[403666200,1769457041884,-828.7855079,0.00016438,2]
[403666201,1769457041893,-828.7855079,0.00016438,2]
[403666202,1769457041903,-828.7855079,0.00016438,2]
[403666203,1769457041913,-828.7855079,0.00016438,2]
[403666204,1769457041922,-828.7855079,0.00016438,2]
[403666205,1769457041934,-828.7855079,0.00016438,2]
[403666206,1769457041945,-828.7855079,0.00016438,2]
[403666207,1769457041954,-828.7855079,0.00016438,2]
[403666208,1769457041964,-828.7855079,0.00016438,2]
[403666209,1769457041977,-828.7855079,0.00016438,2]
[403666210,1769457041987,-828.7855079,0.00016438,2]
[403666211,1769457041996,-828.7855079,0.00016438,2]
[403666212,1769457042006,-828.7855079,0.00016438,2]
[403666213,1769457042015,-828.7855079,0.00016438,2]
[403666214,1769457042025,-828.7855079,0.00016438,2]
[403666215,1769457042035,-828.7855079,0.00016438,2]
[403666216,1769457042045,-828.7855079,0.00016438,2]
[403666217,1769457042054,-828.7855079,0.00016438,2]
[403666218,1769457042064,-828.7855079,0.00016438,2]
[403666219,1769457042073,-828.7855079,0.00016438,2]
[403666220,1769457042083,-828.7855079,0.00016438,2]
[403666221,1769457042093,-828.7855079,0.00016438,2]
[403666222,1769457042102,-828.7855079,0.00016438,2]
[403666223,1769457042112,-1647.24566837,0.00016438,2]
[403666224,1769457042328,-1647.24566837,0.00016438,2]
[403666225,1769457042338,-1647.24566837,0.00016438,2]
[403666226,1769457042347,-1647.24566837,0.00016438,2]
[403666227,1769457042357,-1647.24566837,0.00016438,2]
[403666228,1769457042367,-1647.24566837,0.00016438,2]
[403666229,1769457042377,-1647.24566837,0.00016438,2]
[403666230,1769457042387,-1647.24566837,0.00016438,2]
[403666231,1769457042396,-1647.24566837,0.00016438,2]
[403666232,1769457042406,-1647.24566837,0.00016438,2]
[403666233,1769457042415,-1647.24566837,0.00016438,2]
[403666234,1769457042425,-1647.24566837,0.00016438,2]
[403666235,1769457042434,-1647.24566837,0.00016438,2]
[403666236,1769457042444,-1647.24566837,0.00016438,2]
[403666237,1769457042453,-1647.24566837,0.00016438,2]
[403666238,1769457042463,-1647.24566837,0.00016438,2]
[403666239,1769457042472,-1647.24566837,0.00016438,2]
[403666240,1769457042482,-1647.24566831,0.00016438,2]
[403666241,1769457042491,-798.0,0.00016438,2]
[403666242,1769457042501,-800.0,0.00016438,2]
[403666243,1769457042511,-267.46074303,0.00016438,2]
[403666244,1769457042520,-171.68,0.00016447,2]
[403666245,1769457042530,-160.26,0.00016451,2]
[403666246,1769457042539,-610.0,0.00016456,2]
[403666247,1769457042549,-150.0,0.00016493,2]
[403666248,1769457042558,-2256.26623761,0.00016535,2]
[403666249,1769457042568,-3980.32108693,0.00016535,2]
[403666250,1769457042578,-5954.32229868,0.00016535,2]
[403666251,1769457042588,-8056.4022,0.00016535,2]
[403666252,1769457042597,-610.0,0.00016541,2]
[403666253,1769457042607,-610.0,0.00016542,2]
[403666254,1769457042617,-154.14477787,0.00016548,2]
[403666255,1769457042627,-610.0,0.00016553,2]
[403666256,1769457042636,-6582.6636573,0.00016658,2]
[403666257,1769457042646,-8873.94935315,0.00016658,2]
[403666258,1769457042655,-912.33,0.00016685,2]
[403666259,1769457042665,-610.0,0.00016703,2]
[403666260,1769457042675,-610.0,0.00016705,2]
[403666261,1769457042684,-610.0,0.00016707,2]
[403666262,1769457042694,-195.0,0.00016709,2]
[403666263,1769457042703,-242.69,0.0001674,2]
[403666264,1769457042713,-610.0,0.0001675,2]
[403666265,1769457042722,-610.0,0.00016764,2]
[403666266,1769457042732,-181.83,0.00016765,2]
[403666267,1769457042741,-150.0,0.00016765,2]
[403666268,1769457042750,-610.0,0.00016815,2]
[403666270,1769457042760,-155.0,0.00016848,2]
[403666271,1769457042770,-151.0,0.00016851,2]
[403666272,1769457042780,-187.78006525,0.00016851,2]
[403666273,1769457042792,-217.15233878,0.00016851,2]
[403666274,1769457042801,-885.86649465,0.00016851,2]
[403666275,1769457042811,-345.11501915,0.00016851,2]
[403666276,1769457042820,-500.0,0.00016851,2]
[403666277,1769457042829,-610.0,0.00016872,2]
[403666278,1769457042839,-510.0,0.00016872,2]
[403666279,1769457042848,-500.0,0.00016883,2]
[403666281,1769457042857,-500.0,0.00016883,2]
[403666283,1769457042867,-500.0,0.00016883,2]
[403666285,1769457042876,-500.0,0.00016883,2]
[403666286,1769457042885,-500.0,0.00016883,2]
[403666287,1769457042895,-500.0,0.00016883,2]
[403666288,1769457042904,-500.0,0.00016883,2]
[403666289,1769457042914,-500.0,0.00016883,2]
[403666290,1769457042923,-500.0,0.00016883,2]
[403666291,1769457042940,-500.0,0.00016884,2]
[403666292,1769457042951,-163.26940322,0.00016884,2]
[403666293,1769457042961,-162.93573151,0.00016884,2]
[403666294,1769457042971,-500.0,0.00016884,2]
[403666295,1769457042981,-500.0,0.00016884,2]
[403666296,1769457042991,-500.0,0.00016884,2]
[403666297,1769457043001,-500.0,0.00016884,2]
[403666298,1769457043010,-336.04474913,0.00016884,2]
[403666299,1769457043020,-160.35517843,0.00016884,2]
[403666300,1769457043030,-500.0,0.00016884,2]
[403666301,1769457043039,-500.0,0.00016884,2]
[403666303,1769457043048,-500.0,0.00016884,2]
[403666304,1769457043058,-500.0,0.00016884,2]
[403666305,1769457043068,-500.0,0.00016884,2]
[403666306,1769457043077,-163.15888102,0.00016884,2]
[403666307,1769457043087,-500.0,0.00016884,2]
[403666308,1769457043097,-161.35686202,0.00016884,2]
[403666309,1769457043107,-559.01847466,0.00016884,2]
[403666310,1769457043117,-500.0,0.00016884,2]
[403666311,1769457043126,-150.92743294,0.00016884,2]
[403666312,1769457043136,-521.69766282,0.00016884,2]
[403666313,1769457043145,-500.0,0.00016884,2]
[403666314,1769457043155,-500.0,0.00016884,2]
[403666315,1769457043164,-500.0,0.00016884,2]
[403666316,1769457043174,-500.0,0.00016884,2]
[403666317,1769457043183,-500.0,0.00016884,2]
[403666318,1769457043192,-500.0,0.00016884,2]
[403666319,1769457043202,-300.0,0.00016884,2]
[403666320,1769457043211,-500.0,0.00016884,2]
[403666321,1769457043220,-500.0,0.00016884,2]
[403666322,1769457043230,-500.0,0.00016884,2]
[403666323,1769457043239,-161.26653539,0.00016884,2]
[403666324,1769457043249,-333.28418579,0.00016884,2]
[403666325,1769457043258,-500.0,0.00016884,2]
[403666326,1769457043267,-161.79669812,0.00016884,2]
[403666327,1769457043277,-500.0,0.00016884,2]
[403666328,1769457043286,-500.0,0.00016884,2]
[403666329,1769457043296,-500.0,0.00016884,2]
[403666330,1769457043305,-500.0,0.00016884,2]
[403666331,1769457043315,-500.0,0.00016884,2]
[403666332,1769457043324,-160.10504853,0.00016884,2]
[403666333,1769457043334,-180.11638707,0.00016884,2]
[403666334,1769457043343,-500.0,0.00016884,2]
[403666335,1769457043352,-150.0,0.00016884,2]
[403666336,1769457043361,-500.0,0.00016884,2]
[403666337,1769457043371,-500.0,0.00016884,2]
[403666338,1769457043380,-500.0,0.00016884,2]
[403666339,1769457043390,-158.12162723,0.00016884,2]
[403666340,1769457043399,-160.05036115,0.00016884,2]
[403666341,1769457043409,-512.34755088,0.00016884,2]
[403666342,1769457043418,-160.105891,0.00016884,2]
[403666343,1769457043427,-500.0,0.00016884,2]
[403666344,1769457043436,-208.18830285,0.00016884,2]
[403666345,1769457043446,-500.0,0.00016884,2]
[403666346,1769457043455,-500.0,0.00016884,2]
[403666347,1769457043465,-500.0,0.00016884,2]
[403666348,1769457043474,-573.39128735,0.00016884,2]
[403666349,1769457043483,-500.0,0.00016884,2]
[403666351,1769457043492,-500.0,0.00016884,2]
[403666352,1769457043502,-500.0,0.00016884,2]
[403666353,1769457043511,-161.02070758,0.00016884,2]
[403666354,1769457043521,-160.03318119,0.00016884,2]
[403666355,1769457043531,-160.10406232,0.00016884,2]
[403666356,1769457043540,-160.10752734,0.00016884,2]
[403666357,1769457043549,-160.09618491,0.00016884,2]
[403666358,1769457043559,-162.53079181,0.00016884,2]
[403666359,1769457043568,-485.73612495,0.00016884,2]
[403666360,1769457043578,-500.0,0.00016884,2]
[403666361,1769457043587,-500.0,0.00016884,2]
[403666362,1769457043596,-500.0,0.00016884,2]
[403666363,1769457043605,-164.62413904,0.00016884,2]
[403666364,1769457043616,-500.0,0.00016884,2]
[403666365,1769457043625,-500.0,0.00016884,2]
[403666366,1769457043634,-167.838992,0.00016884,2]
[403666367,1769457043644,-500.0,0.00016884,2]
[403666368,1769457043653,-500.0,0.00016884,2]
[403666369,1769457043662,-160.00359926,0.00016884,2]
[403666370,1769457043671,-160.10568478,0.00016884,2]
[403666371,1769457043681,-500.0,0.00016884,2]
[403666372,1769457043690,-160.10588668,0.00016884,2]
[403666373,1769457043700,-160.10409569,0.00016884,2]
[403666374,1769457043709,-160.0879285,0.00016884,2]
[403666375,1769457043718,-500.0,0.00016884,2]
[403666376,1769457043727,-500.0,0.00016884,2]
[403666377,1769457043736,-500.0,0.00016884,2]
[403666378,1769457043746,-500.0,0.00016884,2]
[403666379,1769457043755,-165.77830412,0.00016884,2]
[403666380,1769457043764,-500.0,0.00016884,2]
[403666381,1769457043774,-500.0,0.00016884,2]
[403666382,1769457043783,-376.42478585,0.00016884,2]
[403666383,1769457043792,-166.49490539,0.00016884,2]
[403666384,1769457043802,-169.57046626,0.00016884,2]
[403666385,1769457043811,-161.96822861,0.00016884,2]
[403666386,1769457043822,-500.0,0.00016884,2]
[403666387,1769457043831,-500.0,0.00016884,2]
[403666388,1769457043841,-500.0,0.00016884,2]
[403666389,1769457043850,-509.00464684,0.00016884,2]
[403666390,1769457043860,-500.0,0.00016884,2]
[403666391,1769457043869,-500.0,0.00016884,2]
[403666392,1769457043879,-309.0024886,0.00016884,2]
[403666393,1769457043888,-500.0,0.00016884,2]
[403666394,1769457043898,-208.64053096,0.00016884,2]
[403666395,1769457043907,-511.9238305,0.00016884,2]
[403666396,1769457043916,-500.0,0.00016884,2]
[403666397,1769457043926,-500.59346825,0.00016884,2]
[403666398,1769457043939,-610.0,0.00016887,2]
[403666399,1769457043948,-9456.90626247,0.000169,2]
[403666400,1769457043957,-6582.6636573,0.00016906,2]
[403666401,1769457043967,-8873.94935315,0.00016906,2]
[403666402,1769457043977,-1301.0,0.00016941,2]
[403666403,1769457043987,-912.33,0.00016959,2]
[403666404,1769457043996,-446.04265821,0.0001697,2]
[403666405,1769457044008,-798.0,0.00016986,2]
[403666406,1769457044019,-255.56,0.00016999,2]
[403666407,1769457044028,-500.0,0.00016999,2]
[403666408,1769457044037,-500.0,0.00016999,2]
[403666409,1769457044047,-500.0,0.00016999,2]
[403666410,1769457044057,-462.63319291,0.00016999,2]
[403666411,1769457044068,-500.0,0.00016999,2]
[403666412,1769457044078,-1301.0,0.0001701,2]
[403666413,1769457044087,-334.5472959,0.00017124,2]
[403666414,1769457044096,-6582.6636573,0.00017155,2]
[403666415,1769457044105,-8873.94935315,0.00017155,2]
[403666416,1769457044114,-150.00221203,0.0001722,2]
[403666417,1769457044123,-250.0,0.00017229,2]
[403666418,1769457044132,-300.0,0.0001723,2]
[403666419,1769457044141,-200.0,0.0001723,2]
[403666420,1769457044150,-200.0,0.0001723,2]
[403666421,1769457044159,-200.0,0.0001723,2]
[403666422,1769457044168,-200.0,0.0001723,2]
[403666423,1769457044178,-208.68914964,0.0001723,2]
[403666424,1769457044189,-195.0,0.0001723,2]
[403666425,1769457044198,-250.0,0.0001723,2]
[403666426,1769457044207,-912.33,0.00017233,2]
[403666427,1769457044216,-420.0,0.00017237,2]
[403666428,1769457044226,-300.0,0.00017237,2]
[403666429,1769457044234,-1301.0,0.00017241,2]
[403666430,1769457044243,-155.0,0.00017259,2]
[403666431,1769457044253,-159.27022522,0.00017271,2]
[403666432,1769457044263,-1680.0,0.00017324,2]
[403666433,1769457044275,-562.11895918,0.00017332,2]
[403666434,1769457044284,-10000.0,0.00017332,2]
[403666435,1769457044294,-195.0,0.00017341,2]
[403666436,1769457044304,-250.0,0.00017341,2]
[403666437,1769457044314,-500.0,0.00017355,2]
[403666438,1769457044323,-5640.0,0.00017356,2]
[403666439,1769457044333,-837.0,0.0001736,2]
[403666440,1769457044343,-151.0,0.00017399,2]
[403666441,1769457044351,-194.72792766,0.00017399,2]
[403666442,1769457044362,-225.18697532,0.00017399,2]
[403666443,1769457044371,-918.64355495,0.00017399,2]
[403666444,1769457044380,-500.0,0.00017399,2]
[403666445,1769457044389,-1200.0,0.000174,6]
[403666446,1769457044399,-6582.6636573,0.00017403,2]
[403666447,1769457044408,-8873.94935315,0.00017403,2]
[403666448,1769457044418,-1301.0,0.0001742,2]
[403666449,1769457044427,-250.0,0.00017431,2]
[403666450,1769457044436,-1301.0,0.00017431,2]
[403666451,1769457044446,-792.30789436,0.00017432,2]
[403666452,1769457044456,-1000.0,0.00017432,2]
[403666453,1769457044466,-826.19937569,0.00017432,2]
[403666454,1769457044476,-1000.91009756,0.00017432,2]
[403666455,1769457044486,-1000.0,0.00017432,2]
[403666456,1769457044496,-1000.0,0.00017432,2]
[403666457,1769457044507,-1000.0,0.00017432,2]
[403666458,1769457044517,-1000.50836351,0.00017432,2]
[403666459,1769457044526,-672.85721293,0.00017432,2]
[403666460,1769457044536,-1000.0,0.00017432,2]
[403666461,1769457044545,-1000.0,0.00017432,2]
[403666462,1769457044555,-597.46779081,0.00017432,2]
[403666463,1769457044564,-1000.0,0.00017432,2]
[403666464,1769457044573,-1000.0,0.00017432,2]
[403666465,1769457044582,-1000.0,0.00017432,2]
[403666466,1769457044591,-1000.0,0.00017432,2]
[403666467,1769457044600,-1000.0,0.00017432,2]
[403666468,1769457044610,-1000.0,0.00017432,2]
[403666469,1769457044619,-463.18396516,0.00017432,2]
[403666470,1769457044628,-600.26267219,0.00017432,2]
[403666471,1769457044637,-1000.0,0.00017432,2]
[403666472,1769457044646,-700.3059212,0.00017432,2]
[403666473,1769457044655,-483.90534832,0.00017432,2]
[403666474,1769457044664,-1000.0,0.00017432,2]
[403666475,1769457044673,-613.35697276,0.00017432,2]
[403666476,1769457044683,-1000.27422086,0.00017432,2]
[403666477,1769457044692,-1000.0,0.00017432,2]
[403666478,1769457044703,-275.87290132,0.00017432,2]
[403666479,1769457044714,-1000.92344922,0.00017432,2]
[403666480,1769457044725,-150.2937682,0.00017432,2]
[403666481,1769457044735,-698.8665229,0.00017432,2]
[403666482,1769457044745,-1000.0,0.00017432,2]
[403666483,1769457044754,-1000.0,0.00017432,2]
[403666484,1769457044765,-1000.0,0.00017432,2]
[403666485,1769457044775,-1000.0,0.00017432,2]
[403666486,1769457044786,-375.25011324,0.00017432,2]
[403666487,1769457044796,-1000.0,0.00017432,2]
[403666488,1769457044807,-172.17559996,0.00017432,2]
[403666489,1769457044817,-182.12522668,0.00017432,2]
[403666490,1769457044829,-1000.0,0.00017432,2]
[403666491,1769457044840,-1000.0,0.00017432,2]
[403666492,1769457044850,-1000.71345876,0.00017432,2]
[403666493,1769457044861,-1000.0,0.00017432,2]
[403666494,1769457044872,-1000.0,0.00017432,2]
[403666495,1769457044882,-1000.0,0.00017432,2]
[403666496,1769457044892,-1000.0,0.00017432,2]
[403666497,1769457044902,-996.47600898,0.00017432,2]
[403666498,1769457044912,-1084.53861149,0.00017432,2]
[403666499,1769457044921,-1000.0,0.00017432,2]
[403666500,1769457044935,-1075.19044869,0.00017432,2]
[403666501,1769457044945,-1000.0,0.00017432,2]
[403666502,1769457044954,-500.55962396,0.00017432,2]
[403666503,1769457044963,-1000.37494334,0.00017432,2]
[403666504,1769457044973,-1000.0,0.00017432,2]
[403666505,1769457044983,-1000.0,0.00017432,2]
[403666506,1769457044992,-1000.88574824,0.00017432,2]
[403666507,1769457045002,-666.87439448,0.00017432,2]
[403666508,1769457045012,-868.30615195,0.00017432,2]
[403666509,1769457045021,-1000.63653282,0.00017432,2]
[403666510,1769457045030,-557.85157046,0.00017432,2]
[403666511,1769457045039,-1000.0,0.00017432,2]
[403666512,1769457045048,-168.0,0.00017456,2]
[403666513,1769457045057,-1900.0,0.000175,6]
[403666514,1769457045066,-912.33,0.00017507,2]
[403666515,1769457045075,-500.0,0.00017534,2]
[403666516,1769457045084,-315.45,0.00017534,2]
[403666517,1769457045093,-274.90596103,0.00017552,2]
[403666518,1769457045103,-2500.0,0.000176,6]
[403666519,1769457045112,-867.98,0.00017632,2]
[403666520,1769457045298,-274.90596099,0.00017639,2]
[403666521,1769457045310,-1000.0,0.0001764,2]
[403666522,1769457045321,-6582.6636573,0.00017652,2]
[403666523,1769457045330,-8873.94935315,0.00017652,2]
[403666524,1769457045339,-1000.0,0.00017654,2]
[403666525,1769457045350,-155.0,0.0001767,2]
[403666526,1769457045360,-3200.0,0.000177,6]
[403666527,1769457045370,-1000.0,0.00017717,2]
[403666528,1769457045380,-274.90596099,0.00017726,2]
[403666529,1769457045389,-570.10348176,0.00017757,2]
[403666530,1769457045398,-500.0,0.0001778,2]
[403666531,1769457045407,-629.89651824,0.0001778,2]
[403666532,1769457045416,-1000.0,0.00017781,2]
[403666533,1769457045427,-912.40466997,0.00017781,2]
[403666534,1769457045436,-1000.0,0.00017788,2]
[403666535,1769457045446,-1301.0,0.00017793,2]
[403666536,1769457045464,-5268.17964723,0.000178,2]
[403666537,1769457045477,-600.0,0.000178,6]
[403666538,1769457045489,-200.0,0.00017808,5]
[403666539,1769457045499,-200.0,0.00017808,5]
[403666540,1769457045509,-200.0,0.00017808,5]
[403666541,1769457045519,-200.0,0.00017808,5]
[403666542,1769457045529,-200.0,0.00017808,5]
[403666543,1769457045539,-200.0,0.00017808,5]
[403666544,1769457045548,-200.0,0.00017808,5]
[403666545,1769457045558,-200.0,0.00017808,5]
[403666546,1769457045568,-200.0,0.00017808,5]
[403666547,1769457045578,-200.0,0.00017808,5]
[403666548,1769457045589,-200.0,0.00017808,5]
[403666549,1769457045599,-300.0,0.00017808,5]
[403666550,1769457045609,-274.90596099,0.00017813,2]
[403666551,1769457045618,-306.06500178,0.00017814,2]
[403666552,1769457045628,-531.4641031,0.00017814,2]
[403666553,1769457045637,-1301.0,0.00017815,2]
[403666554,1769457045646,-2000.0,0.0001782,2]
[403666555,1769457045655,-2000.0,0.0001782,2]
[403666556,1769457045665,-500.0,0.00017872,2]
[403666557,1769457045676,-1408.0,0.00017872,2]
[403666559,1769457045686,-1333.0,0.00017872,2]
[403666560,1769457045696,-3477.0,0.00017872,2]
[403666561,1769457045706,-615.0,0.00017872,2]
[403666562,1769457045715,-184.0,0.00017872,2]
[403666563,1769457045725,-1269.0,0.00017872,2]
[403666564,1769457045735,-6570.0,0.00017872,2]
[403666565,1769457045744,-2442.0,0.00017872,2]
[403666566,1769457045754,-6582.6636573,0.000179,2]
[403666567,1769457045764,-8873.94935315,0.000179,2]
[403666568,1769457045773,-600.0,0.000179,6]
[403666569,1769457045783,-274.90596099,0.000179,2]
[403666570,1769457045793,-222.96242774,0.000179,3]
[403666571,1769457045802,-867.98,0.00017906,2]
[403666572,1769457045812,-151.0,0.00017947,2]
[403666573,1769457045825,-201.93286099,0.00017947,2]
[403666574,1769457045835,-299.37395239,0.00017947,2]
[403666575,1769457045845,-952.63336648,0.00017947,2]
[403666576,1769457045854,-521.41483801,0.00017973,2]
[403666577,1769457045864,-204.88166996,0.0001798,2]
[403666578,1769457045874,-1500.0,0.0001798,2]
[403666579,1769457045884,-1500.0,0.0001798,2]
[403666580,1769457045894,-387.79476707,0.0001799,2]
[403666581,1769457045904,-307.45601862,0.0001799,2]
[403666582,1769457045914,-307.45601862,0.0001799,2]
[403666583,1769457045924,-171.68,0.00017993,2]
[403666584,1769457045938,-600.40964335,0.00017999,2]
[403666585,1769457045949,-500.0,0.00017999,2]
[403666586,1769457045959,-500.0,0.00017999,2]
[403666587,1769457045970,-5114569.9091168,0.00018,2]
[403666588,1769457045980,-110199.41631262,0.00018,2]
[403666589,1769457045990,-316189.91876555,0.00018,2]
[403666594,1769457046700,-629.67317731,0.00018,2]
[403666595,1769457048466,-1.7e-07,0.00018,2]
[403666596,1769457048494,-972.88,0.00018,2]
[403666597,1769457048902,-9862.32773374,0.00018,2]
[403666598,1769457049191,-2325.25558628,0.00018,2]
[403666599,1769457049203,-46886.11105139,0.00018,2]
[403666600,1769457049215,-73275.58047562,0.00018,2]
[403666601,1769457049232,-2025.03293898,0.00018,2]
[403666602,1769457049252,-415144.54966972,0.00018,2]
[403666603,1769457099846,-500.0,0.00015763,2]
[403666604,1769457099868,-128.47086925,0.00015763,2]
[403666605,1769457101389,-277.90939824,0.00015763,2]
[403666606,1769457131418,4400.13,0.00014293,2]
[403666607,1769457145220,1403.9,0.00019178,30]
[403666608,1769457159538,-151.69590403,0.00015655,2]
[403666609,1769457163334,-282.32205396,0.00015655,2]
[403666610,1769457164869,-237.47072118,0.00015655,2]
[403666611,1769457167063,-221.65826949,0.00015655,2]
[403666612,1769457169121,-262.34404567,0.00015655,2]
[403666613,1769457170679,-218.91069413,0.00015655,2]
[403666614,1769457172153,-152.97215145,0.00015655,2]
[403666615,1769457174856,-244.50718168,0.00015655,2]
[403666616,1769457177305,-322.87212497,0.00015655,2]
[403666617,1769457179563,-296.01635023,0.00015655,2]
[403666618,1769457181740,-217.67794604,0.00015655,2]
[403666619,1769457183318,-364.29993488,0.00015655,2]
[403666620,1769457184803,-317.9260501,0.00015655,2]
[403666621,1769457186385,-176.3635118,0.00015655,2]
[403666622,1769457188875,-220.85293412,0.00015655,2]
[403666623,1769457191440,-183.7866476,0.00015655,2]
[403666624,1769457194507,-440.46022887,0.00015655,2]
[403666625,1769457197216,-245.61663754,0.00015655,2]
[403666626,1769457198749,-201.35302676,0.00015655,2]
[403666627,1769457200220,-241.50529993,0.00015655,2]
[403666628,1769457201784,-383.33077612,0.00015654,2]
[403666629,1769457205025,-153.04058837,0.00015654,2]
[403666630,1769457206548,-216.85110539,0.00015654,2]
[403666633,1769457423213,437.54878761,0.00011773,2]
[403666634,1769457423248,349.9990533,0.00011773,2]
[403666635,1769457425660,500.0,0.00011773,2]
[403666636,1769457425692,500.0,0.00012321,2]
[403666637,1769457444504,-539.9351591,0.00015563,2]
[403666638,1769457444527,-35.93811085,0.00015607,2]
[403666639,1769457447264,-214.06188915,0.00015607,2]
[403666640,1769457447286,-85.93811085,0.00015635,2]
[403666641,1769457450647,-164.06188915,0.00015635,2]
[403666642,1769457450670,-85.93811085,0.00015652,2]
[403666643,1769457451889,-172.0456,0.00015652,2]
[403666644,1769457459591,-42.01628915,0.00015652,2]
[403666645,1769457459613,-300.0,0.00015652,2]
[403666646,1769457459637,-112.19547752,0.00015653,2]
[403666648,1769457463381,-387.80452248,0.00015653,2]
[403666649,1769457463405,-281.10476786,0.00015653,2]
[403666650,1769457464847,-256.42019666,0.00015653,2]
[403666651,1769457464869,-34.48830971,0.00015653,2]
[403666652,1769457468653,-465.51169029,0.00015653,2]
[403666653,1769457468682,-380.63415321,0.00015653,2]
[403666654,1769457468716,-728.00051685,0.00015653,2]
[403666655,1769457468747,-500.0,0.00015653,2]
[403666656,1769457468774,-500.0,0.00015653,2]
[403666657,1769457468806,-728.00051685,0.00015653,2]
[403666658,1769457468838,-728.00051685,0.00015653,2]
[403666659,1769457468868,-288.19255839,0.00015653,2]
[403666660,1769457468899,-635.32957827,0.00015653,2]
[403666661,1769457468954,-92.67093858,0.00015653,2]
[403666662,1769457468988,-728.00051685,0.00015653,2]
[403666663,1769457469022,-728.00051685,0.00015653,2]
[403666664,1769457469055,-728.00051685,0.00015653,2]
[403666665,1769457469088,-728.00051685,0.00015653,2]
[403666666,1769457469119,-728.00051685,0.00015653,2]
[403666667,1769457469152,-728.00051685,0.00015653,2]
[403666668,1769457469185,-350.66140379,0.00015653,2]
[403666669,1769457469508,-377.33911306,0.00015653,2]
[403666670,1769457469542,-728.00051685,0.00015653,2]
[403666671,1769457469576,-728.00051685,0.00015653,2]
[403666672,1769457469608,-728.00051685,0.00015653,2]
[403666673,1769457469641,-728.00051685,0.00015653,2]
[403666674,1769457469674,-728.00051685,0.00015653,2]
[403666675,1769457469706,-728.00051685,0.00015653,2]
[403666676,1769457469826,-728.00051685,0.00015653,2]
[403666678,1769457469861,-728.00051685,0.00015653,2]
[403666679,1769457469893,-728.00051685,0.00015653,2]
[403666680,1769457469925,-728.00051685,0.00015653,2]
[403666681,1769457469956,-728.00051685,0.00015653,2]
[403666682,1769457469988,-728.00051685,0.00015653,2]
[403666683,1769457470020,-536.00328095,0.00015653,2]
[403666684,1769457470366,-166.66,0.00015653,2]
[403666685,1769457470608,-25.3372359,0.00015653,2]
[403666686,1769457470618,-417.99510647,0.00015653,2]
[403666687,1769457470634,-310.00541038,0.00015653,2]
[403666688,1769457470644,-417.99510647,0.00015653,2]
[403666689,1769457471246,-310.00541038,0.00015653,2]
[403666690,1769457471277,-728.00051685,0.00015653,2]
[403666691,1769457471308,-728.00051685,0.00015653,2]
[403666692,1769457471338,-728.00051685,0.00015653,2]
[403666693,1769457471369,-728.00051685,0.00015653,2]
[403666694,1769457471399,-728.00051685,0.00015653,2]
[403666695,1769457471429,-728.00051685,0.00015653,2]
[403666696,1769457471558,-643.99297704,0.00015653,2]
[403666697,1769457471593,-84.00753981,0.00015653,2]
[403666698,1769457471626,-728.00051685,0.00015653,2]
[403666699,1769457471657,-728.00051685,0.00015653,2]
[403666700,1769457471689,-728.00051685,0.00015653,2]
[403666701,1769457471724,-728.00051685,0.00015653,2]
[403666702,1769457471757,-728.00051685,0.00015653,2]
[403666703,1769457471790,-728.00051685,0.00015653,2]
[403666704,1769457471824,-367.98820133,0.00015653,2]
[403666705,1769457471855,-360.01231552,0.00015653,2]
[403666706,1769457471881,-7.39082561,0.00015653,2]
[403666707,1769457472019,-360.01231552,0.00015653,2]
[403666708,1769457474835,-300.0,0.00015563,2]
[403666709,1769457477268,-155.03186656,0.00015563,2]
[403666710,1769457479531,-258.69331905,0.00015563,2]
[403666711,1769457480356,-32.93213281,0.00015563,2]
[403666712,1769457480390,-360.59737572,0.00015653,2]
[403666713,1769457480438,-728.00051685,0.00015653,2]